[Event "EYCC Girls U10 2021"]
[Site "Tornelo"]
[Date "2021.10.15"]
[Round "3.10"]
[White "Ashton, Alannah"]
[Black "Valiyeva, Asnad"]
[Result "1-0"]
[ECO "B13"]
[WhiteElo "1294"]
[BlackElo "1173"]
[Annotator "NA"]
[PlyCount "99"]
[EventDate "2021.10.15"]
[EventType "swiss"]
[EventCountry "NET"]
[SourceTitle "playchess.com"]
[Source "ChessBase"]
[SourceQuality "1"]
[TimeControl "5400+30"]

1. e4 {[%emt 0:00:30]} c6 {[%emt 0:00:40]} 2. d4 {[%emt 0:00:03]} d5 {[%emt 0:00:02]} 3. exd5 {[%emt 0:00:02]} cxd5 {[%emt 0:00:05]} 4. c4 {[%emt 0:00:03]} Nc6 {[%emt 0:00:06]} 5. Nf3 {[%emt 0:00:07]} Nf6 {[%emt 0:00:06]} 6. Nc3 {[%emt 0:00:03]} Bg4 {[%emt 0:02:43]} 7. cxd5 {[%emt 0:00:05]} Nxd5 {[%emt 0:00:06]} 8. Qb3 {[%emt 0:00:14]} Nxc3 {[%emt 0:03:13]} 9. bxc3 {[%emt 0:00:28]} Bxf3 {[%emt 0:01:11]} 10. gxf3 {[%emt 0:00:06]} Qc7 {[%emt 0:00:21]} 11. Rb1 {[%emt 0:03:10]} Rb8 {[%emt 0:01:13]} 12. Bb5 {[%emt 0:03:58]} a6 {[%emt 0:01:19]} 13. Bf4 {[%emt 0:00:48]} Qxf4 {[%emt 0:07:32]} 14. Bxc6+ {[%emt 0:00:15]} Kd8 {[%emt 0:00:07]} 15. Qd5+ {[%emt 0:02:07]} Qd6 {[%emt 0:00:10]} 16. Rxb7 {[%emt 0:02:00]} Rxb7 {[%emt 0:01:13]} 17. Bxb7 {[%emt 0:01:37]} Qxd5 {[%emt 0:00:07]} 18. Bxd5 {[%emt 0:00:09]} e6 {[%emt 0:00:04]} 19. Bc4 {[%emt 0:00:33]} a5 {[%emt 0:00:34]} 20. Kd2 {[%emt 0:00:09]} Bd6 {[%emt 0:01:02]} 21. h3 {[%emt 0:00:36]} Ke7 {[%emt 0:07:08]} 22. Rb1 {[%emt 0:00:36]} Rc8 {[%emt 0:00:16]} 23. Rb7+ {[%emt 0:01:24]} Kf6 {[%emt 0:00:09]} 24. Bb3 {[%emt 0:01:22]} Ba3 {[%emt 0:00:35]} 25. Kc2 {[%emt 0:01:11]} Bb4 {[%emt 0:00:20]} 26. c4 {[%emt 0:00:37]} Be1 {[%emt 0:00:14]} 27. Ra7 {[%emt 0:02:17]} Bxf2 {[%emt 0:01:04]} 28. Rxa5 {[%emt 0:00:13]} Bxd4 {[%emt 0:00:05]} 29. a4 {[%emt 0:06:21]} e5 {[%emt 0:00:12]} 30. Rb5 {[%emt 0:01:55]} Rc7 {[%emt 0:00:24]} 31. a5 {[%emt 0:00:55]} Rb7 {[%emt 0:01:12]} 32. Rxb7 {[%emt 0:00:08]} Kg6 {[%emt 0:00:19]} 33. a6 {[%emt 0:00:26]} f6 {[%emt 0:00:13]} 34. a7 {[%emt 0:00:36]} Bxa7 {[%emt 0:00:08]} 35. Rxa7 {[%emt 0:00:06]} Kh6 {[%emt 0:00:06]} 36. c5 {[%emt 0:00:01]} g6 {[%emt 0:00:10]} 37. c6 {[%emt 0:00:02]} Kg5 {[%emt 0:00:06]} 38. Rxh7 {[%emt 0:00:09]} Kf4 {[%emt 0:00:04]} 39. Bd5 {[%emt 0:00:06]} f5 {[%emt 0:00:15]} 40. c7 {[%emt 0:00:14]} g5 {[%emt 0:00:08]} 41. c8=Q {[%emt 0:00:07]} e4 {[%emt 0:00:16]} 42. Rf7 {[%emt 0:00:23]} Ke3 {[%emt 0:00:12]} 43. Qxf5 {[%emt 0:00:07]} exf3 {[%emt 0:00:07]} 44. Qxf3+ {[%emt 0:00:03]} Kd4 {[%emt 0:00:07]} 45. Qe4+ {[%emt 0:00:05]} Kc5 {[%emt 0:00:03]} 46. Rc7+ {[%emt 0:00:06]} Kb5 {[%emt 0:00:06]} 47. Qc4+ {[%emt 0:00:05]} Ka5 {[%emt 0:00:06]} 48. Rc5+ {[%emt 0:00:06]} Kb6 {[%emt 0:00:03]} 49. Qb4+ {[%emt 0:00:01]} Ka7 {[%emt 0:00:03]} 50. Ra5# {[%emt 0:00:02]} 1-0

[Event "EYCC Girls U10 2021"]
[Site "Tornelo"]
[Date "2021.10.15"]
[Round "3.11"]
[White "Berezovskaya, Arina"]
[Black "Sultanova, Kristina"]
[Result "0-1"]
[ECO "B22"]
[WhiteElo "1102"]
[BlackElo "1293"]
[Annotator "NA"]
[PlyCount "98"]
[EventDate "2021.10.15"]
[EventType "swiss"]
[EventCountry "NET"]
[SourceTitle "playchess.com"]
[Source "ChessBase"]
[SourceQuality "1"]
[TimeControl "5400+30"]

1. e4 {[%emt 0:00:30]} c5 {[%emt 0:00:37]} 2. Nf3 {[%emt 0:00:04]} e6 {[%emt 0:00:11]} 3. c3 {[%emt 0:00:11]} d5 {[%emt 0:00:13]} 4. exd5 {[%emt 0:00:09]} Qxd5 {[%emt 0:00:08]} 5. d4 {[%emt 0:00:17]} Nc6 {[%emt 0:00:17]} 6. Na3 {[%emt 0:00:46]} Nf6 {[%emt 0:00:27]} 7. Nb5 {[%emt 0:00:26]} Qd8 {[%emt 0:00:25]} 8. Bf4 {[%emt 0:00:26]} Nd5 {[%emt 0:00:26]} 9. Bg3 {[%emt 0:00:34]} a6 {[%emt 0:01:08]} 10. Na3 {[%emt 0:00:24]} cxd4 {[%emt 0:00:21]} 11. Nxd4 {[%emt 0:04:47]} Nxd4 {[%emt 0:02:33]} 12. Qxd4 {[%emt 0:01:16]} Qb6 {[%emt 0:04:59]} 13. Qxb6 {[%emt 0:00:45]} Nxb6 {[%emt 0:00:09]} 14. Nc4 {[%emt 0:00:48]} Nxc4 {[%emt 0:01:36]} 15. Bxc4 {[%emt 0:01:14]} Bc5 {[%emt 0:01:07]} 16. O-O-O {[%emt 0:00:30]} O-O {[%emt 0:00:19]} 17. Bd6 {[%emt 0:02:01]} Bxd6 {[%emt 0:00:25]} 18. Rxd6 {[%emt 0:00:06]} b5 {[%emt 0:01:02]} 19. Bb3 {[%emt 0:01:23]} Bb7 {[%emt 0:01:33]} 20. f3 {[%emt 0:05:33]} Rfd8 {[%emt 0:00:40]} 21. Rhd1 {[%emt 0:00:18]} Rxd6 {[%emt 0:00:31]} 22. Rxd6 {[%emt 0:00:08]} Kf8 {[%emt 0:00:39]} 23. Rb6 {[%emt 0:00:15]} Bc8 {[%emt 0:02:44]} 24. Bc2 {[%emt 0:01:59]} f5 {[%emt 0:04:39]} 25. Bb3 {[%emt 0:00:30]} Ke7 {[%emt 0:01:21]} 26. c4 {[%emt 0:01:03]} Bd7 {[%emt 0:04:06]} 27. cxb5 {[%emt 0:07:24]} axb5 {[%emt 0:00:33]} 28. Kd2 {[%emt 0:01:39]} Kd8 {[%emt 0:10:04]} 29. Rd6 {[%emt 0:06:57]} Ke7 {[%emt 0:01:27]} 30. Rd3 {[%emt 0:01:33]} g5 {[%emt 0:00:42]} 31. Re3 {[%emt 0:00:58]} h5 {[%emt 0:00:28]} 32. g3 {[%emt 0:02:09]} g4 {[%emt 0:01:39]} 33. f4 {[%emt 0:01:04]} Rh8 {[%emt 0:00:21]} 34. Bc2 {[%emt 0:00:39]} Kf6 {[%emt 0:02:09]} 35. Rd3 {[%emt 0:00:57]} Rh7 {[%emt 0:03:58]} 36. b3 {[%emt 0:03:25]} Ke7 {[%emt 0:00:24]} 37. Re3 {[%emt 0:01:03]} Kf6 {[%emt 0:01:02]} 38. a4 {[%emt 0:01:32]} bxa4 {[%emt 0:00:33]} 39. bxa4 {[%emt 0:00:26]} h4 {[%emt 0:00:21]} 40. Ra3 {[%emt 0:01:40]} hxg3 {[%emt 0:00:32]} 41. hxg3 {[%emt 0:00:33]} Bc6 {[%emt 0:00:17]} 42. Kc3 {[%emt 0:03:47]} Rh3 {[%emt 0:00:49]} 43. Kb4 {[%emt 0:01:03]} Bf3 {[%emt 0:00:35]} 44. a5 {[%emt 0:00:26]} Rxg3 {[%emt 0:01:23]} 45. a6 {[%emt 0:00:13]} Rh3 {[%emt 0:00:25]} 46. a7 {[%emt 0:01:06]} Ba8 {[%emt 0:00:32]} 47. Ra1 {[%emt 0:06:20]} g3 {[%emt 0:00:35]} 48. Rg1 {[%emt 0:01:04]} g2 {[%emt 0:00:12]} 49. Bd1 {[%emt 0:04:13]} Rh1 {[%emt 0:00:18]} 0-1

[Event "EYCC Girls U10 2021"]
[Site "Tornelo"]
[Date "2021.10.15"]
[Round "3.12"]
[White "Figa, Karolina"]
[Black "Ashotia, Barbare"]
[Result "0-1"]
[ECO "D15"]
[WhiteElo "1411"]
[BlackElo "1128"]
[Annotator "NA"]
[PlyCount "138"]
[EventDate "2021.10.15"]
[EventType "swiss"]
[EventCountry "NET"]
[SourceTitle "playchess.com"]
[Source "ChessBase"]
[SourceQuality "1"]
[TimeControl "5400+30"]

1. d4 {[%emt 0:00:30]} d5 {[%emt 0:00:35]} 2. c4 {[%emt 0:00:04]} c6 {[%emt 0:00:06]} 3. Nf3 {[%emt 0:00:08]} Nf6 {[%emt 0:00:14]} 4. Nc3 {[%emt 0:00:17]} Bf5 {[%emt 0:00:29]} 5. cxd5 {[%emt 0:00:14]} Nxd5 {[%emt 0:01:01]} 6. Qb3 {[%emt 0:03:32]} Nb6 {[%emt 0:02:33]} 7. e4 {[%emt 0:01:57]} Bg6 {[%emt 0:03:37]} 8. Be3 {[%emt 0:00:46]} N8d7 {[%emt 0:05:08]} 9. Bd3 {[%emt 0:02:17]} e6 {[%emt 0:00:40]} 10. O-O {[%emt 0:00:58]} Bd6 {[%emt 0:03:47]} 11. Bg5 {[%emt 0:00:28]} Qb8 {[%emt 0:02:03]} 12. h3 {[%emt 0:01:40]} O-O {[%emt 0:00:21]} 13. Nh4 {[%emt 0:00:41]} Bf4 {[%emt 0:04:03]} 14. Nxg6 {[%emt 0:02:21]} hxg6 {[%emt 0:00:20]} 15. Bxf4 {[%emt 0:01:04]} Qxf4 {[%emt 0:00:21]} 16. Ne2 {[%emt 0:00:17]} Qd6 {[%emt 0:00:20]} 17. e5 {[%emt 0:00:34]} Qe7 {[%emt 0:01:26]} 18. a4 {[%emt 0:02:00]} Rab8 {[%emt 0:00:38]} 19. Ng3 {[%emt 0:01:11]} Nd5 {[%emt 0:02:06]} 20. Ne4 {[%emt 0:01:37]} Nf4 {[%emt 0:05:50]} 21. Rac1 {[%emt 0:04:41]} Nb6 {[%emt 0:04:43]} 22. a5 {[%emt 0:03:25]} Nbd5 {[%emt 0:02:58]} 23. Bc4 {[%emt 0:01:09]} Rfd8 {[%emt 0:02:25]} 24. Nd6 {[%emt 0:01:10]} Qc7 {[%emt 0:02:28]} 25. Qa3 {[%emt 0:02:01]} Ne7 {[%emt 0:01:19]} 26. Qf3 {[%emt 0:01:35]} Ned5 {[%emt 0:02:54]} 27. b4 {[%emt 0:01:04]} Qe7 {[%emt 0:03:50]} 28. Kh2 {[%emt 0:01:32]} g5 {[%emt 0:01:30]} 29. g3 {[%emt 0:01:53]} Ng6 {[%emt 0:00:32]} 30. Bxd5 {[%emt 0:00:37]} exd5 {[%emt 0:00:15]} 31. Qe3 {[%emt 0:02:09]} Nf8 {[%emt 0:01:17]} 32. f4 {[%emt 0:02:18]} Rxd6 {[%emt 0:00:41]} 33. f5 {[%emt 0:05:10]} Rh6 {[%emt 0:01:39]} 34. f6 {[%emt 0:01:14]} Qe6 {[%emt 0:01:43]} 35. g4 {[%emt 0:02:32]} Nh7 {[%emt 0:01:13]} 36. fxg7 {[%emt 0:01:40]} Qxg4 {[%emt 0:03:13]} 37. Rf3 {[%emt 0:01:16]} Kxg7 {[%emt 0:01:16]} 38. Rg1 {[%emt 0:01:26]} Qe6 {[%emt 0:00:34]} 39. Qf4 {[%emt 0:01:03]} Rf8 {[%emt 0:00:47]} 40. Qg3 {[%emt 0:02:36]} f6 {[%emt 0:00:57]} 41. Re3 {[%emt 0:00:32]} b6 {[%emt 0:02:01]} 42. Rf1 {[%emt 0:00:46]} Qd7 {[%emt 0:01:17]} 43. e6 {[%emt 0:00:32]} Qe7 {[%emt 0:00:23]} 44. axb6 {[%emt 0:01:03]} axb6 {[%emt 0:00:14]} 45. Ra1 {[%emt 0:00:29]} Re8 {[%emt 0:00:54]} 46. Rc1 {[%emt 0:01:52]} Rc8 {[%emt 0:02:59]} 47. Qg4 {[%emt 0:01:10]} Rh4 {[%emt 0:00:43]} 48. Qd1 {[%emt 0:00:35]} Qd6+ {[%emt 0:00:35]} 49. Kg2 {[%emt 0:00:13]} Re8 {[%emt 0:00:48]} 50. e7 {[%emt 0:01:14]} Rxe7 {[%emt 0:00:44]} 51. Rxc6 {[%emt 0:00:30]} Qd7 {[%emt 0:01:32]} 52. Rec3 {[%emt 0:01:37]} Qf5 {[%emt 0:01:25]} 53. Rc7 {[%emt 0:01:52]} Qe4+ {[%emt 0:00:16]} 54. Kf2 {[%emt 0:00:33]} Qf4+ {[%emt 0:00:55]} 55. Qf3 {[%emt 0:00:49]} Rxc7 {[%emt 0:00:12]} 56. Rxc7+ {[%emt 0:00:53]} Qxc7 {[%emt 0:00:05]} 57. Qxd5 {[%emt 0:00:06]} Rf4+ {[%emt 0:00:15]} 58. Ke3 {[%emt 0:00:48]} Qc3+ {[%emt 0:00:06]} 59. Ke2 {[%emt 0:00:04]} Qc2+ {[%emt 0:00:13]} 60. Ke3 {[%emt 0:00:13]} Qf2+ {[%emt 0:00:08]} 61. Kd3 {[%emt 0:00:06]} Qf1+ {[%emt 0:00:13]} 62. Ke3 {[%emt 0:00:19]} Qxh3+ {[%emt 0:00:44]} 63. Ke2 {[%emt 0:00:12]} Qg4+ {[%emt 0:01:07]} 64. Ke3 {[%emt 0:00:26]} Qg3+ {[%emt 0:00:10]} 65. Qf3 {[%emt 0:00:16]} Qxf3+ {[%emt 0:00:20]} 66. Kd2 {[%emt 0:00:04]} Rxd4+ {[%emt 0:00:04]} 67. Kc2 {[%emt 0:00:02]} Qd3+ {[%emt 0:00:04]} 68. Kb2 {[%emt 0:00:03]} Rxb4+ {[%emt 0:00:03]} 69. Ka1 {[%emt 0:00:11]} Qb1# {[%emt 0:00:03]} 0-1

[Event "EYCC Girls U10 2021"]
[Site "Tornelo"]
[Date "2021.10.15"]
[Round "4.1"]
[White "Preobrazhenskaya, Diana"]
[Black "Blinova, Sofia"]
[Result "1-0"]
[ECO "C42"]
[WhiteElo "1764"]
[BlackElo "1297"]
[Annotator "NA"]
[PlyCount "111"]
[EventDate "2021.10.15"]
[EventType "swiss"]
[EventCountry "NET"]
[SourceTitle "playchess.com"]
[Source "ChessBase"]
[SourceQuality "1"]
[TimeControl "5400+30"]

1. e4 {[%emt 0:00:30]} e5 {[%emt 0:00:49]} 2. Nf3 {[%emt 0:00:05]} Nf6 {[%emt 0:00:02]} 3. Nxe5 {[%emt 0:00:06]} d6 {[%emt 0:00:06]} 4. Nf3 {[%emt 0:00:06]} Nxe4 {[%emt 0:00:03]} 5. Nc3 {[%emt 0:00:08]} Nf6 {[%emt 0:00:07]} 6. d4 {[%emt 0:01:17]} d5 {[%emt 0:00:06]} 7. Bg5 {[%emt 0:00:51]} Be6 {[%emt 0:01:53]} 8. Be2 {[%emt 0:01:09]} Be7 {[%emt 0:00:33]} 9. O-O {[%emt 0:01:19]} h6 {[%emt 0:01:37]} 10. Bh4 {[%emt 0:00:27]} O-O {[%emt 0:00:56]} 11. Ne5 {[%emt 0:02:31]} Nfd7 {[%emt 0:02:31]} 12. Bg3 {[%emt 0:01:27]} Bh4 {[%emt 0:04:04]} 13. Bf4 {[%emt 0:02:21]} Bg5 {[%emt 0:01:17]} 14. Bg3 {[%emt 0:02:14]} Bh4 {[%emt 0:00:09]} 15. f4 {[%emt 0:03:22]} Nxe5 {[%emt 0:01:06]} 16. dxe5 {[%emt 0:00:53]} Bxg3 {[%emt 0:00:43]} 17. hxg3 {[%emt 0:00:04]} c6 {[%emt 0:00:42]} 18. Qd4 {[%emt 0:02:24]} f5 {[%emt 0:03:39]} 19. Na4 {[%emt 0:08:26]} b6 {[%emt 0:02:12]} 20. b4 {[%emt 0:02:57]} Nd7 {[%emt 0:03:11]} 21. c4 {[%emt 0:03:04]} a6 {[%emt 0:07:34]} 22. cxd5 {[%emt 0:01:32]} cxd5 {[%emt 0:01:18]} 23. Bf3 {[%emt 0:02:03]} b5 {[%emt 0:04:11]} 24. Bxd5 {[%emt 0:00:55]} Bxd5 {[%emt 0:00:41]} 25. Qxd5+ {[%emt 0:00:05]} Kh8 {[%emt 0:00:06]} 26. e6 {[%emt 0:05:16]} Nf6 {[%emt 0:01:10]} 27. Qc5 {[%emt 0:10:25]} Qd3 {[%emt 0:03:26]} 28. Rf3 {[%emt 0:05:14]} Qd2 {[%emt 0:01:39]} 29. Nb6 {[%emt 0:01:33]} Ne4 {[%emt 0:01:25]} 30. Qe3 {[%emt 0:06:04]} Qxe3+ {[%emt 0:01:11]} 31. Rxe3 {[%emt 0:00:13]} Rae8 {[%emt 0:00:25]} 32. Nd7 {[%emt 0:00:36]} Rg8 {[%emt 0:00:14]} 33. Nc5 {[%emt 0:03:02]} Nxc5 {[%emt 0:00:30]} 34. bxc5 {[%emt 0:00:07]} Re7 {[%emt 0:00:12]} 35. Rd1 {[%emt 0:01:10]} Rge8 {[%emt 0:01:10]} 36. Rd6 {[%emt 0:02:54]} Ra8 {[%emt 0:00:29]} 37. Rd7 {[%emt 0:02:08]} Rae8 {[%emt 0:00:51]} 38. c6 {[%emt 0:01:07]} Rxe6 {[%emt 0:00:38]} 39. Rxe6 {[%emt 0:00:19]} Rxe6 {[%emt 0:00:05]} 40. Rd8+ {[%emt 0:00:10]} Kh7 {[%emt 0:00:05]} 41. c7 {[%emt 0:00:06]} Rc6 {[%emt 0:00:04]} 42. c8=Q {[%emt 0:00:13]} Rxc8 {[%emt 0:00:02]} 43. Rxc8 {[%emt 0:00:03]} Kg6 {[%emt 0:00:02]} 44. Rc6+ {[%emt 0:00:05]} Kf7 {[%emt 0:00:02]} 45. Rxa6 {[%emt 0:00:03]} Ke7 {[%emt 0:00:03]} 46. Rb6 {[%emt 0:00:06]} Kf7 {[%emt 0:00:02]} 47. Rxb5 {[%emt 0:00:04]} Kf6 {[%emt 0:00:03]} 48. a4 {[%emt 0:00:05]} Ke6 {[%emt 0:00:02]} 49. a5 {[%emt 0:00:03]} Kd6 {[%emt 0:00:03]} 50. a6 {[%emt 0:00:03]} Kc6 {[%emt 0:00:02]} 51. Rb1 {[%emt 0:00:05]} Kc7 {[%emt 0:00:03]} 52. a7 {[%emt 0:00:13]} Kd6 {[%emt 0:00:03]} 53. a8=Q {[%emt 0:00:05]} Kc5 {[%emt 0:00:02]} 54. Qc8+ {[%emt 0:00:07]} Kd4 {[%emt 0:00:02]} 55. Rd1+ {[%emt 0:00:09]} Ke3 {[%emt 0:00:02]} 56. Qe6# {[%emt 0:00:04]} 1-0

[Event "EYCC Girls U10 2021"]
[Site "Tornelo"]
[Date "2021.10.15"]
[Round "4.2"]
[White "Asachenko, Ksenia"]
[Black "Aydogan, Arya"]
[Result "0-1"]
[ECO "C80"]
[WhiteElo "1382"]
[BlackElo "1250"]
[Annotator "NA"]
[PlyCount "102"]
[EventDate "2021.10.15"]
[EventType "swiss"]
[EventCountry "NET"]
[SourceTitle "playchess.com"]
[Source "ChessBase"]
[SourceQuality "1"]
[TimeControl "5400+30"]

1. e4 {[%emt 0:00:30]} e5 {[%emt 0:00:36]} 2. Nf3 {[%emt 0:00:04]} Nc6 {[%emt 0:00:02]} 3. Bb5 {[%emt 0:00:03]} a6 {[%emt 0:00:03]} 4. Ba4 {[%emt 0:00:04]} Nf6 {[%emt 0:00:04]} 5. O-O {[%emt 0:00:07]} Nxe4 {[%emt 0:00:04]} 6. Re1 {[%emt 0:00:12]} Nc5 {[%emt 0:00:04]} 7. Nc3 {[%emt 0:00:05]} Be7 {[%emt 0:04:19]} 8. Nd5 {[%emt 0:01:52]} O-O {[%emt 0:10:31]} 9. Bxc6 {[%emt 0:01:36]} dxc6 {[%emt 0:00:06]} 10. Nxe7+ {[%emt 0:01:06]} Qxe7 {[%emt 0:00:13]} 11. d4 {[%emt 0:01:41]} Ne6 {[%emt 0:06:50]} 12. dxe5 {[%emt 0:01:39]} Rd8 {[%emt 0:04:20]} 13. Qe2 {[%emt 0:01:00]} b6 {[%emt 0:05:07]} 14. Be3 {[%emt 0:06:05]} c5 {[%emt 0:02:13]} 15. c3 {[%emt 0:01:53]} Bb7 {[%emt 0:00:23]} 16. Rad1 {[%emt 0:01:28]} Rd5 {[%emt 0:05:51]} 17. Rxd5 {[%emt 0:04:15]} Bxd5 {[%emt 0:00:31]} 18. a3 {[%emt 0:02:25]} Bb7 {[%emt 0:04:42]} 19. Rd1 {[%emt 0:03:01]} Rd8 {[%emt 0:01:51]} 20. h3 {[%emt 0:06:05]} h6 {[%emt 0:02:51]} 21. Rd2 {[%emt 0:10:57]} Rxd2 {[%emt 0:12:32]} 22. Bxd2 {[%emt 0:00:40]} Qd7 {[%emt 0:00:55]} 23. Nh4 {[%emt 0:05:37]} Qd5 {[%emt 0:03:58]} 24. f4 {[%emt 0:02:43]} c4 {[%emt 0:07:32]} 25. f5 {[%emt 0:13:50]} Nc5 {[%emt 0:01:15]} 26. f6 {[%emt 0:05:16]} Ne4 {[%emt 0:04:12]} 27. Bf4 {[%emt 0:15:47]} Qc5+ {[%emt 0:10:51]} 28. Kh2 {[%emt 0:01:01]} Qf2 {[%emt 0:03:39]} 29. Qxf2 {[%emt 0:05:05]} Nxf2 {[%emt 0:00:03]} 30. fxg7 {[%emt 0:00:44]} Kxg7 {[%emt 0:00:42]} 31. Nf5+ {[%emt 0:00:35]} Kg6 {[%emt 0:00:14]} 32. Nxh6 {[%emt 0:01:49]} Nd3 {[%emt 0:00:11]} 33. Be3 {[%emt 0:00:57]} Nxb2 {[%emt 0:00:53]} 34. Ng8 {[%emt 0:01:16]} Kf5 {[%emt 0:01:49]} 35. h4 {[%emt 0:01:48]} Be4 {[%emt 0:04:04]} 36. h5 {[%emt 0:01:05]} Nd1 {[%emt 0:00:59]} 37. Bd4 {[%emt 0:00:31]} c5 {[%emt 0:00:31]} 38. h6 {[%emt 0:02:00]} Kg5 {[%emt 0:00:55]} 39. Nf6 {[%emt 0:01:07]} cxd4 {[%emt 0:01:37]} 40. Nxe4+ {[%emt 0:00:41]} Kxh6 {[%emt 0:00:06]} 41. cxd4 {[%emt 0:00:14]} c3 {[%emt 0:00:13]} 42. Nxc3 {[%emt 0:01:25]} Nxc3 {[%emt 0:00:03]} 43. g4 {[%emt 0:00:20]} Kg5 {[%emt 0:00:33]} 44. Kg3 {[%emt 0:00:11]} Ne2+ {[%emt 0:00:46]} 45. Kf3 {[%emt 0:00:16]} Nxd4+ {[%emt 0:00:03]} 46. Ke4 {[%emt 0:00:07]} Ne6 {[%emt 0:01:44]} 47. Kd5 {[%emt 0:00:21]} Kxg4 {[%emt 0:00:31]} 48. Kc6 {[%emt 0:00:07]} Kf5 {[%emt 0:00:54]} 49. Kxb6 {[%emt 0:00:15]} Kxe5 {[%emt 0:00:05]} 50. Kxa6 {[%emt 0:00:03]} Nc5+ {[%emt 0:00:53]} 51. Kb5 {[%emt 0:00:08]} Kd5 {[%emt 0:00:03]} 0-1

[Event "EYCC Girls U10 2021"]
[Site "Tornelo"]
[Date "2021.10.15"]
[Round "4.3"]
[White "Sultanova, Kristina"]
[Black "Lajdamik, Kinga"]
[Result "1-0"]
[ECO "B14"]
[WhiteElo "1293"]
[BlackElo "1367"]
[Annotator "NA"]
[PlyCount "81"]
[EventDate "2021.10.15"]
[EventType "swiss"]
[EventCountry "NET"]
[SourceTitle "playchess.com"]
[Source "ChessBase"]
[SourceQuality "1"]
[TimeControl "5400+30"]

1. e4 {[%emt 0:00:30]} c6 {[%emt 0:01:06]} 2. d4 {[%emt 0:00:14]} d5 {[%emt 0:00:08]} 3. exd5 {[%emt 0:00:05]} cxd5 {[%emt 0:00:08]} 4. c4 {[%emt 0:00:07]} Nf6 {[%emt 0:00:47]} 5. Nc3 {[%emt 0:00:11]} e6 {[%emt 0:03:35]} 6. Nf3 {[%emt 0:00:23]} Bb4 {[%emt 0:08:46]} 7. Bg5 {[%emt 0:01:58]} h6 {[%emt 0:05:12]} 8. Bh4 {[%emt 0:00:55]} Qa5 {[%emt 0:08:57]} 9. Bxf6 {[%emt 0:04:32]} Bxc3+ {[%emt 0:00:51]} 10. bxc3 {[%emt 0:00:10]} Qxc3+ {[%emt 0:00:11]} 11. Nd2 {[%emt 0:00:09]} gxf6 {[%emt 0:00:15]} 12. Rc1 {[%emt 0:00:16]} Qxd4 {[%emt 0:05:30]} 13. cxd5 {[%emt 0:00:19]} Nd7 {[%emt 0:00:41]} 14. dxe6 {[%emt 0:00:28]} Qe5+ {[%emt 0:01:37]} 15. Be2 {[%emt 0:00:14]} fxe6 {[%emt 0:00:13]} 16. O-O {[%emt 0:00:43]} O-O {[%emt 0:20:16]} 17. Bf3 {[%emt 0:00:54]} Qd6 {[%emt 0:01:41]} 18. Rb1 {[%emt 0:01:43]} Nb6 {[%emt 0:03:28]} 19. Ne4 {[%emt 0:04:47]} Qxd1 {[%emt 0:00:17]} 20. Rfxd1 {[%emt 0:02:23]} Rb8 {[%emt 0:08:24]} 21. Nc5 {[%emt 0:00:42]} e5 {[%emt 0:04:29]} 22. a4 {[%emt 0:04:10]} Kh8 {[%emt 0:01:19]} 23. Rb4 {[%emt 0:02:58]} Na8 {[%emt 0:07:35]} 24. Na6 {[%emt 0:03:56]} bxa6 {[%emt 0:00:41]} 25. Rxb8 {[%emt 0:00:09]} Nb6 {[%emt 0:01:31]} 26. a5 {[%emt 0:00:29]} Na4 {[%emt 0:00:45]} 27. Rc1 {[%emt 0:01:14]} Kg7 {[%emt 0:00:49]} 28. Rbxc8 {[%emt 0:00:31]} Rf7 {[%emt 0:00:20]} 29. R8c7 {[%emt 0:00:12]} Rxc7 {[%emt 0:00:24]} 30. Rxc7+ {[%emt 0:00:18]} Kg6 {[%emt 0:00:04]} 31. Rc2 {[%emt 0:00:09]} f5 {[%emt 0:00:13]} 32. Bc6 {[%emt 0:00:12]} Nb6 {[%emt 0:00:09]} 33. axb6 {[%emt 0:00:07]} axb6 {[%emt 0:00:06]} 34. Ra2 {[%emt 0:00:08]} a5 {[%emt 0:00:11]} 35. Rb2 {[%emt 0:00:08]} b5 {[%emt 0:00:14]} 36. Bxb5 {[%emt 0:00:08]} e4 {[%emt 0:00:09]} 37. Ra2 {[%emt 0:00:11]} e3 {[%emt 0:00:06]} 38. fxe3 {[%emt 0:00:06]} f4 {[%emt 0:00:11]} 39. exf4 {[%emt 0:00:08]} h5 {[%emt 0:00:09]} 40. Rxa5 {[%emt 0:00:08]} h4 {[%emt 0:00:08]} 41. Bd3+ {[%emt 0:00:09]} 1-0

[Event "EYCC Girls U10 2021"]
[Site "Tornelo"]
[Date "2021.10.15"]
[Round "4.4"]
[White "Sokolova, Regina"]
[Black "Ashton, Alannah"]
[Result "1-0"]
[ECO "B55"]
[WhiteElo "1364"]
[BlackElo "1294"]
[Annotator "NA"]
[PlyCount "112"]
[EventDate "2021.10.15"]
[EventType "swiss"]
[EventCountry "NET"]
[SourceTitle "playchess.com"]
[Source "ChessBase"]
[SourceQuality "1"]
[TimeControl "5400+30"]

1. e4 {[%emt 0:00:30]} c5 {[%emt 0:00:33]} 2. Nf3 {[%emt 0:00:04]} d6 {[%emt 0:00:03]} 3. d4 {[%emt 0:00:07]} cxd4 {[%emt 0:00:02]} 4. Nxd4 {[%emt 0:00:02]} Nf6 {[%emt 0:00:03]} 5. f3 {[%emt 0:00:17]} e5 {[%emt 0:00:03]} 6. Nb3 {[%emt 0:01:50]} d5 {[%emt 0:00:10]} 7. Bg5 {[%emt 0:01:10]} Be6 {[%emt 0:00:06]} 8. Bxf6 {[%emt 0:11:44]} gxf6 {[%emt 0:00:05]} 9. exd5 {[%emt 0:00:26]} Qxd5 {[%emt 0:00:04]} 10. Qxd5 {[%emt 0:00:06]} Bxd5 {[%emt 0:00:01]} 11. Nc3 {[%emt 0:00:03]} Be6 {[%emt 0:00:02]} 12. O-O-O {[%emt 0:00:16]} Nc6 {[%emt 0:00:10]} 13. Bb5 {[%emt 0:01:45]} Rc8 {[%emt 0:00:43]} 14. Na5 {[%emt 0:11:55]} Bh6+ {[%emt 0:02:34]} 15. Kb1 {[%emt 0:00:11]} Kf8 {[%emt 0:04:08]} 16. Nxb7 {[%emt 0:12:58]} Nd4 {[%emt 0:00:53]} 17. Bd3 {[%emt 0:01:40]} Ke7 {[%emt 0:02:39]} 18. Na5 {[%emt 0:01:30]} Rhg8 {[%emt 0:01:08]} 19. Rhg1 {[%emt 0:10:00]} f5 {[%emt 0:00:40]} 20. Nb3 {[%emt 0:04:03]} Be3 {[%emt 0:01:25]} 21. Rge1 {[%emt 0:00:58]} f4 {[%emt 0:00:31]} 22. Bf1 {[%emt 0:09:58]} Bf5 {[%emt 0:00:23]} 23. Nd5+ {[%emt 0:07:58]} Kf8 {[%emt 0:00:53]} 24. Nxe3 {[%emt 0:03:20]} fxe3 {[%emt 0:00:21]} 25. Nxd4 {[%emt 0:02:26]} exd4 {[%emt 0:00:29]} 26. Rxd4 {[%emt 0:01:25]} Rxc2 {[%emt 0:05:20]} 27. Ka1 {[%emt 0:02:22]} Kg7 {[%emt 0:02:16]} 28. Rdd1 {[%emt 0:05:19]} Re8 {[%emt 0:02:23]} 29. Re2 {[%emt 0:03:28]} Rd2 {[%emt 0:01:32]} 30. Rexd2 {[%emt 0:04:31]} exd2 {[%emt 0:00:16]} 31. Bb5 {[%emt 0:00:11]} Re1 {[%emt 0:00:12]} 32. Ba4 {[%emt 0:00:15]} Bd3 {[%emt 0:00:59]} 33. b4 {[%emt 0:01:46]} Be2 {[%emt 0:00:21]} 34. Rb1 {[%emt 0:00:16]} Rxb1+ {[%emt 0:00:39]} 35. Kxb1 {[%emt 0:00:02]} d1=Q+ {[%emt 0:00:02]} 36. Bxd1 {[%emt 0:00:03]} Bxd1 {[%emt 0:00:02]} 37. Kb2 {[%emt 0:00:07]} Be2 {[%emt 0:00:04]} 38. a4 {[%emt 0:00:07]} a6 {[%emt 0:00:03]} 39. Kc3 {[%emt 0:00:07]} Kf6 {[%emt 0:00:11]} 40. Kd4 {[%emt 0:00:06]} Ke6 {[%emt 0:00:12]} 41. Kc5 {[%emt 0:00:27]} Kd7 {[%emt 0:01:44]} 42. b5 {[%emt 0:02:05]} axb5 {[%emt 0:01:23]} 43. axb5 {[%emt 0:00:07]} Kc7 {[%emt 0:00:18]} 44. b6+ {[%emt 0:00:03]} Kb7 {[%emt 0:00:06]} 45. Kd6 {[%emt 0:00:06]} Bd3 {[%emt 0:01:35]} 46. Ke7 {[%emt 0:00:08]} Bg6 {[%emt 0:00:05]} 47. f4 {[%emt 0:00:05]} Kxb6 {[%emt 0:02:02]} 48. g4 {[%emt 0:00:19]} Kc6 {[%emt 0:09:53]} 49. f5 {[%emt 0:01:25]} Kd5 {[%emt 0:00:34]} 50. fxg6 {[%emt 0:00:20]} fxg6 {[%emt 0:00:04]} 51. Kf6 {[%emt 0:00:49]} Ke4 {[%emt 0:00:11]} 52. Kg5 {[%emt 0:01:38]} Kf3 {[%emt 0:00:16]} 53. h4 {[%emt 0:01:51]} Kg3 {[%emt 0:01:01]} 54. h5 {[%emt 0:00:24]} gxh5 {[%emt 0:00:10]} 55. gxh5 {[%emt 0:00:15]} Kh3 {[%emt 0:00:11]} 56. h6 {[%emt 0:00:24]} Kg3 {[%emt 0:00:11]} 1-0